bitfinex-derivatives/quotes_ETHF0:USTF0_20250326
["timestamp","ask_amount","ask_price","bid_price","bid_amount"]
[1742976169452,2.9464,2072.7,2072.6,2.26249078]
[1742976169651,2.9464,2072.7,2072.6,1.29764078]
[1742976170553,1.9816,2072.7,2072.6,2.26249078]
[1742976170956,3.2078,2072.8,2072.7,0.9648]
[1742976171153,0.6791,2072.9,2072.8,0.96476]
[1742976171354,4.79581,2072.9,2072.8,0.96476]
[1742976171555,0.96476,2072.8,2072.7,2.97287]
[1742976171755,4.79585,2072.9,2072.8,2.29786]
[1742976172063,4.79585,2072.9,2072.8,1.3331]
[1742976172356,4.79585,2072.9,2072.8,2.29786]
[1742976174056,4.79585,2072.9,2072.8,1.3331]
[1742976176559,0.9648,2072.7,2072.6,0.97209078]
[1742976176755,0.9648,2072.7,2072.6,2.30729078]
[1742976176962,0.9648,2072.7,2072.6,1.34244078]
[1742976179264,0.9648,2072.7,2072.6,2.30727078]
[1742976179855,3.2078,2072.8,2072.7,0.9648]
[1742976179856,4.17258,2072.8,2072.7,0.9648]
[1742976180061,4.17258,2072.8,2072.7,1.3184]
[1742976180358,4.17258,2072.8,2072.7,2.2832]
[1742976180558,4.17258,2072.8,2072.7,2.9817]
[1742976181066,4.17258,2072.8,2072.7,2.0169]
[1742976181463,4.17258,2072.8,2072.7,1.3184]
[1742976181869,4.17258,2072.8,2072.7,2.2832]
[1742976182169,4.17258,2072.8,2072.7,1.3184]
[1742976183775,5.54958,2072.8,2072.7,1.3184]
[1742976185173,0.9648,2072.7,2072.6,0.00724078]
[1742976185374,2.3302,2072.7,2072.6,0.00724078]
[1742976186272,4.8302,2072.7,2072.2,0.6789]
[1742976186477,0.96499,2072.3,2072.2,1.2793]
[1742976186775,3.2078,2072.4,2072.3,0.96499]
[1742976186973,1.3654,2072.5,2072.4,0.96494]
[1742976187169,3.158,2072.5,2072.4,0.96494]
[1742976187768,3.21504078,2072.7,2072.6,0.96485]
[1742976187970,6.38104078,2072.7,2072.5,0.96487]
[1742976188174,6.38104078,2072.7,2072.6,2.97775]
[1742976188481,7.34584078,2072.7,2072.6,2.0129]
[1742976188678,7.74724078,2072.7,2072.6,2.0129]
[1742976188986,6.38104078,2072.7,2072.6,2.97775]
[1742976189285,6.38104078,2072.7,2072.6,2.0129]
[1742976189477,6.38104078,2072.7,2072.6,2.97775]
[1742976189784,6.37804078,2072.7,2072.6,2.97775]
[1742976197884,7.07794078,2072.7,2072.6,2.97775]
[1742976198187,8.41804078,2072.7,2072.6,2.97775]
[1742976199085,8.41804078,2072.7,2072.6,1.332]
[1742976199292,9.38284078,2072.7,2072.6,1.332]
[1742976200179,8.41804078,2072.7,2072.6,2.29685]
[1742976201586,9.38284078,2072.7,2072.6,1.332]
[1742976202384,9.38284078,2072.7,2072.6,2.29685]
[1742976202892,9.38284078,2072.7,2072.6,1.332]
[1742976204487,8.41804078,2072.7,2072.2,3.21504078]
[1742976204692,0.96494,2072.4,2072.3,1.341]
[1742976204891,4.12294,2072.4,2072.3,1.341]
[1742976205493,4.80204,2072.4,2072.3,1.341]
[1742976205883,4.80204,2072.4,2072.3,2.30599]
[1742976206078,4.80204,2072.4,2072.3,1.341]
[1742976206292,0.96499,2072.3,2072.2,0.00724078]
[1742976206592,2.28759,2072.3,2072.2,0.00724078]
[1742976208791,2.28759,2072.3,2072.2,1.41224078]
[1742976209691,2.28759,2072.3,2072.2,0.00724078]
[1742976212998,0.96504,2072.2,2072.1,0.95116]
[1742976213196,3.05514,2072.2,2072.1,0.95116]
[1742976214894,0.96513,2072.0,2071.9,0.00724078]
[1742976215095,0.96522,2071.8,2071.7,1.3202]
[1742976215396,1.3962,2071.9,2071.7,2.26707576]
[1742976215584,1.3962,2071.9,2071.5,3.8933]
[1742976215585,0.96526,2071.8,2071.5,3.8933]
[1742976215791,5.51367,2071.7,2071.6,0.96532]
[1742976216192,0.96532,2071.6,2071.5,0.6855]
[1742976216393,1.3914,2071.6,2071.5,1.65086]
[1742976218501,1.3914,2071.6,2071.5,2.97166]
[1742976219404,2.35672,2071.6,2071.5,2.97166]
[1742976219607,1.3914,2071.6,2071.4,0.00482718]
[1742976219804,7.33011,2071.7,2071.5,0.96536]
[1742976220005,7.33011,2071.7,2071.6,2.28612]
[1742976220209,7.33011,2071.7,2071.6,1.3208]
[1742976220715,7.33011,2071.7,2071.6,2.28612]
[1742976221306,7.33011,2071.7,2071.6,1.3208]
[1742976227314,7.33011,2071.7,2071.6,2.28612]
[1742976227506,7.33011,2071.7,2071.6,1.3208]
[1742976227707,7.33011,2071.7,2071.6,2.92972]
[1742976230014,7.33011,2071.7,2071.6,1.9644]
[1742976232611,7.33011,2071.7,2071.6,1.3208]
[1742976233215,7.41016479,2071.7,2071.6,1.3208]
[1742976233409,7.41016479,2071.7,2071.4,0.00482718]
[1742976233410,0.96536,2071.5,2071.4,0.00482718]
[1742976233618,0.96536,2071.5,2071.4,1.30932718]
[1742976234006,1.61036,2071.5,2071.4,1.30932718]
[1742976235317,1.61036,2071.5,2070.9,3.2078]
[1742976235318,0.96555,2071.1,2071.0,0.96557]
[1742976235615,4.10655,2071.1,2071.0,4.00757]
[1742976236316,4.10655,2071.1,2071.0,3.042]
[1742976236611,5.38455,2071.1,2071.0,3.042]
[1742976237207,5.38455,2071.1,2071.0,1.402]
[1742976238409,5.38755,2071.1,2071.0,2.3676]
[1742976238810,4.10955,2071.1,2071.0,2.3676]
[1742976239011,3.144,2071.1,2071.0,2.3676]
[1742976239315,4.10855,2071.1,2071.0,1.402]
[1742976239508,5.48885,2071.1,2071.0,1.402]
[1742976241018,2.34585,2071.1,2071.0,1.402]
[1742976241318,5.48785,2071.1,2071.0,1.402]
[1742976241706,2.34585,2071.1,2071.0,1.402]
[1742976242009,5.48685,2071.1,2071.0,1.402]
[1742976243718,2.34585,2071.1,2071.0,1.402]
[1742976243914,5.48485,2071.1,2071.0,1.402]
[1742976249214,0.96569,2070.8,2070.7,0.9657]
[1742976249514,3.135,2070.8,2070.7,2.4281]
[1742976250020,4.5228,2070.8,2070.7,2.4281]
[1742976250420,5.48849,2070.8,2070.7,2.4281]
[1742976250623,4.5228,2070.8,2070.7,2.4281]
[1742976251720,4.10069,2070.8,2070.7,0.08]
[1742976252019,5.48849,2070.8,2070.7,1.4624]
[1742976252915,5.48849,2070.8,2070.7,0.08]
[1742976253319,0.96578,2070.6,2070.5,1.3464]
[1742976253619,4.17358,2070.6,2070.5,1.3464]
[1742976253819,0.96592,2070.3,2070.2,1.66724]
[1742976254013,4.10192,2070.3,2070.2,1.66724]
[1742976254213,3.136,2070.3,2070.1,0.6496]
[1742976254411,0.6621,2070.2,2070.1,0.6496]
[1742976254623,0.6621,2070.2,2070.1,1.61559]
[1742976254816,4.10193,2070.3,2070.1,1.61559]
[1742976255022,4.10193,2070.3,2070.2,0.96597]
[1742976255325,4.10193,2070.3,2070.2,2.26227]
[1742976255521,4.10193,2070.3,2070.2,1.2963]
[1742976255726,10.09007,2070.3,2069.9,0.96608]
[1742976255923,0.96606,2070.0,2069.9,0.96608]
[1742976256117,4.10406,2070.0,2069.9,0.96608]
[1742976256826,3.138,2070.0,2069.9,0.96608]
[1742976257419,3.136,2070.0,2069.9,0.96611]
[1742976258325,4.10206,2070.0,2069.9,0.96611]
[1742976258629,3.136,2070.0,2069.9,0.96611]
[1742976259021,4.10206,2070.0,2069.9,0.96611]
[1742976259329,3.136,2070.0,2069.9,0.96611]
[1742976259530,0.96611,2069.9,2069.8,2.26243]
[1742976259736,1.3081,2069.9,2069.8,2.26243]
[1742976260121,4.10208,2070.0,2069.9,0.96611]
[1742976260323,5.41016,2070.0,2069.9,2.29251]
[1742976262623,5.41016,2070.0,2069.9,1.3264]
[1742976263723,8.61796,2070.0,2069.9,1.3264]
[1742976264122,0.96619,2069.8,2069.6,0.6925]
[1742976264320,0.96619,2069.8,2069.7,0.9662]
[1742976264524,3.136,2069.8,2069.7,2.2362]
[1742976264720,4.10216,2069.8,2069.7,2.2362]
[1742976265030,3.825,2069.8,2069.7,2.2362]
[1742976265829,3.136,2069.8,2069.7,2.2362]
[1742976268428,4.10216,2069.8,2069.7,2.2362]
[1742976268633,5.39896,2069.8,2069.7,2.2362]
[1742976268834,4.4328,2069.8,2069.7,2.2362]
[1742976269037,3.136,2069.8,2069.7,2.2362]
[1742976269334,4.86289,2070.0,2069.9,0.96611]
[1742976269526,9.29669,2070.0,2069.9,0.96611]
[1742976269933,9.29669,2070.0,2069.9,2.35841]
[1742976270233,8.3306,2070.0,2069.9,2.35841]
[1742976270627,9.29666,2070.0,2069.9,2.35841]
[1742976272736,8.3306,2070.0,2069.9,2.35841]
[1742976273130,9.29666,2070.0,2069.9,2.35841]
[1742976273437,9.29666,2070.0,2069.9,1.3923]
[1742976273837,9.29666,2070.0,2069.9,2.35841]
[1742976277339,8.3306,2070.0,2069.9,2.35841]
[1742976278238,9.29666,2070.0,2069.9,2.35841]
[1742976279234,6.08886,2070.0,2069.9,2.35841]
[1742976279432,9.29666,2070.0,2069.9,2.35841]
[1742976281331,0.96611,2069.9,2069.5,6.32265]
[1742976281537,2.31451,2069.9,2069.8,0.96616]
[1742976281939,1.3484,2069.9,2069.8,0.96616]
[1742976282534,1.3484,2069.9,2069.8,2.28416]
[1742976287337,2.31451,2069.9,2069.8,2.28416]
[1742976287536,1.3484,2069.9,2069.8,2.28416]
[1742976289142,3.2078,2070.0,2069.9,0.96611]
[1742976289335,6.3448,2070.0,2069.9,2.31931]
[1742976289536,7.707,2070.0,2069.9,2.31931]
[1742976291845,4.4992,2070.0,2069.9,2.31931]
[1742976292641,3.8484,2070.1,2070.0,0.96606]
[1742976292837,8.3842,2070.1,2070.0,2.32266]
[1742976296542,9.35022,2070.1,2070.0,2.32266]
[1742976296749,8.3842,2070.1,2070.0,2.32266]
[1742976300448,9.35022,2070.1,2070.0,2.32266]
[1742976300646,8.3842,2070.1,2070.0,2.32266]
[1742976302358,8.3842,2070.1,2070.0,3.02256]
[1742976305858,5.2472,2070.1,2070.0,3.02256]
[1742976306058,8.3842,2070.1,2070.0,3.02256]
[1742976306252,9.35022,2070.1,2070.0,3.02256]
[1742976306454,9.35022,2070.1,2070.0,2.32266]
[1742976307057,8.3842,2070.1,2070.0,2.32266]
[1742976310056,9.35022,2070.1,2070.0,1.3566]
[1742976310255,9.35022,2070.1,2070.0,2.32266]
[1742976311163,8.3842,2070.1,2070.0,2.32266]
[1742976311554,9.35022,2070.1,2070.0,2.32266]
[1742976313164,9.35022,2070.1,2070.0,1.3566]
[1742976313661,9.35022,2070.1,2070.0,2.32266]
[1742976313862,9.35022,2070.1,2070.0,1.3566]
[1742976314458,9.35022,2070.1,2070.0,2.32266]
[1742976314658,9.35022,2070.1,2070.0,0.96606]
[1742976315163,9.35022,2070.1,2069.8,1.412]
[1742976315164,0.96611,2069.9,2069.8,2.37814]
[1742976315356,0.96611,2069.9,2069.7,0.96616]
[1742976315658,6.11669,2069.8,2069.7,1.84]
[1742976315860,6.11669,2069.8,2069.7,3.252]
[1742976316066,6.11669,2069.8,2069.7,4.2182]
[1742976316257,6.11669,2069.8,2069.7,3.252]
[1742976316463,6.11669,2069.8,2069.7,1.412]
[1742976317355,5.1505,2069.8,2069.7,2.3782]
[1742976317560,4.4851,2069.8,2069.7,2.3782]
[1742976317759,5.1755,2069.8,2069.7,2.3782]
[1742976319069,0.9662,2069.7,2069.6,0.6598]
[1742976319273,2.3664,2069.7,2069.6,0.96625]
[1742976319465,3.0249,2069.7,2069.6,0.96625]
[1742976320379,2.0587,2069.7,2069.6,0.96625]
[1742976320884,3.0249,2069.7,2069.5,1.9205]
[1742976321078,0.6585,2069.7,2069.6,2.24795]
[1742976321280,1.6247,2069.7,2069.6,2.24795]
[1742976322183,0.6585,2069.7,2069.6,2.24795]
[1742976322782,3.8982,2069.8,2069.7,0.9662]
[1742976323079,6.3448,2069.8,2069.7,2.3206]
[1742976323681,7.31098,2069.8,2069.6,0.96621]
[1742976324183,7.31098,2069.8,2069.7,1.3544]
[1742976326970,0.96624,2069.7,2069.4,0.6598]
[1742976327182,6.3448,2069.8,2069.5,2.35047]
[1742976327382,1.65353,2069.7,2069.5,2.35047]
[1742976327584,1.65353,2069.7,2069.6,1.3842]
[1742976333293,0.96633,2069.5,2069.3,1.61267]
[1742976333590,4.17413,2069.5,2069.4,2.36404]
[1742976333783,6.3448,2069.5,2069.4,2.36404]
[1742976334894,6.3448,2069.5,2069.4,4.44404]
[1742976335088,6.3448,2069.5,2069.4,2.36404]
[1742976335384,6.3448,2069.5,2069.4,4.34404]
[1742976336585,6.3448,2069.5,2069.4,2.36404]
[1742976340195,3.137,2069.5,2069.4,2.36404]
[1742976340993,4.1033,2069.5,2069.4,1.3977]
[1742976341295,5.4528,2069.5,2069.4,1.3977]
[1742976342089,0.96645,2069.2,2069.0,0.96651]
[1742976342287,3.137,2069.1,2069.0,0.96651]
[1742976343498,3.137,2069.1,2069.0,2.32281]
[1742976343499,4.4865,2069.1,2069.0,2.32281]
[1742976344101,5.45298,2069.1,2069.0,2.32281]
[1742976344293,4.4865,2069.1,2068.4,44.0078]
[1742976344500,0.96664,2068.8,2068.6,3.00278]
[1742976344696,0.96664,2068.8,2068.7,1.3769]
[1742976344894,4.79744,2068.8,2068.7,1.3769]
[1742976346901,3.8308,2068.8,2068.7,2.34357]
[1742976347702,3.2078,2068.9,2068.8,0.96662]
[1742976347902,3.2078,2068.9,2068.8,2.38132]
[1742976347903,6.3448,2068.9,2068.8,2.38132]
[1742976348303,7.31138,2068.9,2068.8,1.4147]
[1742976349703,6.3448,2068.9,2068.8,2.38132]
[1742976350900,6.3448,2068.9,2068.8,1.4147]
[1742976350901,7.31138,2068.9,2068.8,1.4147]
[1742976351101,6.3448,2068.9,2068.8,2.38132]
[1742976351301,7.31138,2068.9,2068.8,1.4147]
[1742976351502,6.3448,2068.9,2068.8,2.38132]
[1742976352101,3.2078,2068.9,2068.8,2.38132]
[1742976352297,3.137,2068.9,2068.8,2.38132]
[1742976353494,3.2078,2069.2,2069.1,0.96648]
[1742976353694,6.3448,2069.2,2069.1,0.96648]
[1742976353900,7.31124,2069.2,2069.1,0.96648]
[1742976354499,7.31124,2069.2,2069.1,2.31848]
[1742976355506,7.31124,2069.2,2069.1,1.352]
[1742976355697,6.3448,2069.2,2069.1,2.31848]
[1742976356712,7.31124,2069.2,2069.1,1.352]
[1742976357197,7.31124,2069.2,2068.7,3.2078]
[1742976357198,6.3448,2069.2,2068.7,3.2078]
[1742976357397,0.96651,2069.1,2068.9,1.4083]
[1742976357597,0.6749,2069.0,2068.8,0.96662]
[1742976357797,6.3448,2068.9,2068.8,0.96662]
[1742976358208,7.31138,2068.9,2068.7,1.4083]
[1742976358900,7.31138,2068.9,2068.8,0.96662]
[1742976358901,6.3448,2068.9,2068.8,0.96662]
[1742976360009,7.31138,2068.9,2068.7,1.4083]
[1742976360205,6.3448,2068.9,2068.8,0.96662]
[1742976361601,7.31142,2068.9,2068.7,2.37493]
[1742976361800,0.96662,2068.8,2068.7,2.37493]
[1742976362000,0.96662,2068.8,2068.7,1.4083]
[1742976362306,7.31142,2068.9,2068.7,2.37497]
[1742976362505,7.31142,2068.9,2068.8,0.96662]
[1742976362810,6.3448,2068.9,2068.8,2.37822]
[1742976363107,7.31138,2068.9,2068.8,1.4116]
[1742976363508,7.97228,2068.9,2068.8,1.4116]
[1742976363710,9.30108,2068.9,2068.8,2.37822]
[1742976363908,9.30108,2068.9,2068.8,1.4116]
[1742976364610,8.3345,2068.9,2068.8,2.37822]
[1742976365408,6.3448,2068.9,2068.8,2.37822]
[1742976366207,7.6656,2068.9,2068.8,2.37822]
[1742976370621,6.3448,2068.9,2068.8,2.37822]
[1742976372411,7.6704,2068.9,2068.8,2.37822]
[1742976376031,6.3448,2068.9,2068.8,2.37822]
[1742976376317,0.6749,2069.0,2068.9,0.96658]
[1742976376615,0.6749,2069.0,2068.9,2.92498]
[1742976376819,6.05633,2069.0,2068.9,2.92498]
[1742976377118,5.0898,2069.0,2068.9,2.24978]
[1742976378818,6.05633,2069.0,2068.9,2.24978]
[1742976379717,5.0898,2069.0,2068.9,2.24978]
[1742976381117,4.4149,2069.0,2068.9,2.24978]
[1742976381313,4.5309,2069.2,2069.1,0.96648]
[1742976381619,8.63435,2069.2,2069.0,2.26409]
[1742976381920,8.63435,2069.2,2069.1,0.96648]
[1742976382122,8.63435,2069.2,2069.0,0.9665]
[1742976382522,8.63435,2069.2,2069.1,1.2976]
[1742976383619,9.91925,2069.2,2069.1,2.26408]
[1742976383821,9.91925,2069.2,2069.1,1.2976]
[1742976385617,9.91925,2069.2,2068.9,0.96654]
[1742976385618,0.96654,2069.0,2068.7,0.6752]
[1742976385824,3.8168,2068.9,2068.8,2.31832]
[1742976386025,5.1017,2068.9,2068.8,2.31832]
[1742976387318,8.3095,2068.9,2068.8,2.31832]
[1742976390429,9.27608,2068.9,2068.8,2.31832]
[1742976390726,8.3095,2068.9,2068.8,2.31832]
[1742976390923,9.27608,2068.9,2068.8,1.3517]
[1742976391126,9.27608,2068.9,2068.8,2.31832]
[1742976391322,9.27608,2068.9,2068.8,1.3517]
[1742976391523,8.3095,2068.9,2068.8,2.31832]
[1742976393419,6.13908,2068.9,2068.8,2.31832]
[1742976393619,9.27608,2068.9,2068.8,1.3517]
[1742976395534,8.3095,2068.9,2068.8,2.31832]
[1742976396032,9.27608,2068.9,2068.8,2.31832]
[1742976396529,8.3095,2068.9,2068.8,2.31832]
[1742976397125,9.95988,2068.9,2068.8,2.31832]
[1742976397326,8.9933,2068.9,2068.8,2.31832]
[1742976397530,9.95988,2068.9,2068.8,1.3517]
[1742976397834,8.9933,2068.9,2068.8,2.31832]
[1742976398832,9.95988,2068.9,2068.8,2.31832]
[1742976399033,9.95988,2068.9,2068.8,1.3517]
[1742976400233,8.9933,2068.9,2068.8,1.3517]
[1742976400436,9.95988,2068.9,2068.8,1.3517]
[1742976400829,9.95988,2068.9,2068.8,2.31832]
[1742976401131,9.95988,2068.9,2068.8,1.3517]
[1742976406136,0.96674,2068.6,2068.4,0.703]
[1742976406331,4.10376,2068.5,2068.4,2.253]
[1742976406537,4.4964,2068.5,2068.4,2.51681]
[1742976407437,5.1443,2068.5,2068.4,2.51681]
[1742976407940,3.137,2068.5,2068.4,2.51681]
[1742976409837,4.5413,2068.5,2068.4,2.51681]
[1742976410637,3.137,2068.5,2068.4,2.51681]
[1742976410835,4.4887,2068.5,2068.4,2.51681]
[1742976411632,3.137,2068.5,2068.4,2.51681]
[1742976421053,0.6797,2068.8,2068.7,0.96667]
[1742976421259,5.1549,2068.8,2068.7,0.96667]
[1742976421460,6.12152,2068.8,2068.7,0.96667]
[1742976421665,5.1549,2068.8,2068.7,0.96667]
[1742976421854,6.12152,2068.8,2068.7,0.96667]
[1742976422452,5.1549,2068.8,2068.6,2.32089]
[1742976422648,1.3382,2068.7,2068.6,2.32089]
[1742976423556,2.30487,2068.7,2068.6,2.32089]
[1742976423758,4.4752,2068.7,2068.6,2.32089]
[1742976424463,5.44187,2068.7,2068.6,2.32089]
[1742976424959,5.44187,2068.7,2068.6,1.3542]
[1742976430162,5.44187,2068.7,2068.6,2.32092]
[1742976430363,5.44187,2068.7,2068.6,1.3542]
[1742976430755,4.4752,2068.7,2068.6,2.32092]
[1742976432356,5.44187,2068.7,2068.6,2.32092]
[1742976432770,4.4752,2068.7,2068.6,2.32092]
[1742976432969,5.44187,2068.7,2068.6,1.3542]
[1742976433769,4.4752,2068.7,2068.6,2.32092]
[1742976441373,7.683,2068.7,2068.6,2.32092]
[1742976448771,8.64967,2068.7,2068.6,2.32092]
[1742976449172,7.683,2068.7,2068.6,2.32092]
[1742976453979,4.4752,2068.7,2068.6,2.32092]
[1742976454473,1.3382,2068.7,2068.6,2.71092]
[1742976454680,4.4732,2068.7,2068.6,3.02602]
[1742976456176,0.96672,2068.6,2068.5,0.96674]
[1742976456370,0.96677,2068.5,2068.3,1.4104]
[1742976456567,4.4354,2068.4,2068.3,4.24726]
[1742976457781,3.135,2068.4,2068.3,4.24726]
[1742976458784,5.62417,2069.0,2068.7,0.96665]
[1742976458985,2.30747,2068.8,2068.7,0.96665]
[1742976459483,3.62677,2068.8,2068.7,0.96665]
[1742976460280,3.62677,2068.8,2068.6,0.96668]
[1742976460481,4.5271,2068.7,2068.6,0.96668]
[1742976464783,4.5271,2068.7,2068.6,2.97668]
[1742976465085,1.3193,2068.7,2068.6,2.97668]
[1742976465473,4.4543,2068.7,2068.6,2.97668]
[1742976466186,4.4543,2068.7,2068.6,0.96668]
[1742976466579,3.135,2068.7,2068.6,3.30668]
[1742976467585,3.135,2068.7,2068.6,3.07668]
[1742976468288,1.3746,2068.8,2068.7,0.96667]
[1742976472984,0.6476,2068.9,2068.8,0.96662]
[1742976473295,5.1051,2068.9,2068.8,3.08662]
[1742976473495,5.1051,2068.9,2068.8,0.96662]
[1742976476198,5.1051,2068.9,2068.7,1.3066]
[1742976476599,1.3155,2068.8,2068.7,1.3066]
[1742976477298,1.3155,2068.8,2068.7,2.27327]
[1742976481498,1.3155,2068.8,2068.7,4.36327]
[1742976481688,4.5011,2069.0,2068.9,0.96658]
[1742976481893,3.8026,2069.0,2068.9,0.96658]
[1742976482494,3.8026,2069.0,2068.9,2.27558]
[1742976483306,3.8026,2069.0,2068.9,1.309]
[1742976483492,0.6686,2069.0,2068.9,3.439]
[1742976483696,3.8026,2069.0,2068.9,3.439]
[1742976486500,3.8026,2069.0,2068.9,4.40558]
[1742976487099,3.8026,2069.0,2068.9,2.27558]
[1742976489207,3.8026,2069.0,2068.9,1.309]
[1742976490302,3.8026,2069.0,2068.9,2.27558]
[1742976492209,3.8026,2069.0,2068.9,1.309]
[1742976493110,3.8026,2069.0,2068.9,3.439]
[1742976493910,5.0899,2069.0,2068.9,1.309]
[1742976495312,5.0899,2069.0,2068.9,2.27558]
[1742976500103,3.134,2069.0,2068.9,2.65558]
[1742976500299,2.0358,2069.2,2069.1,0.96648]
[1742976500506,1.3273,2069.2,2069.1,0.96648]
[1742976501015,3.14024078,2069.3,2069.2,0.96644]
[1742976501214,1.33454078,2069.3,2069.2,3.05644]
[1742976501407,1.33454078,2069.3,2069.2,4.46714]
[1742976501913,1.33454078,2069.3,2069.2,4.62714]
[1742976502209,0.00724078,2069.3,2069.2,4.62714]
[1742976502713,0.00724078,2069.3,2069.2,46.05437245]
[1742976503310,5.9952,2069.6,2069.5,0.9663]
[1742976503511,4.601,2069.6,2069.5,0.9663]
[1742976504802,4.601,2069.6,2069.5,2.3297]
[1742976505203,1.3932,2069.6,2069.5,2.3297]
[1742976510117,1.3932,2069.6,2069.5,4.2997]
[1742976510319,3.133,2069.7,2069.6,0.96625]
[1742976510517,4.4874,2069.7,2069.6,2.36915]
[1742976513820,2.7571,2069.7,2069.6,2.36915]
[1742976514312,5.8891,2069.7,2069.6,2.36915]
[1742976514519,3.132,2069.7,2069.6,4.69915]
[1742976514720,1.31004078,2069.8,2069.7,0.9662]
[1742976514922,1.31004078,2069.8,2069.7,5.3187]
[1742976515120,0.00724078,2069.8,2069.7,6.0025]
[1742976516913,3.2078,2069.9,2069.8,0.96616]
[1742976517116,3.2078,2069.9,2069.8,4.50596]
[1742976517314,1.9873,2070.3,2070.2,0.96597]
[1742976517720,3.7895,2070.5,2070.4,0.96588]
[1742976518019,5.0913,2070.5,2070.4,0.96588]
[1742976518214,1.9593,2070.5,2070.4,0.96588]
[1742976518918,3.21504078,2070.7,2070.4,2.36]
[1742976519123,3.21504078,2070.7,2070.6,0.96578]
[1742976519920,3.21504078,2070.7,2070.6,2.27448]
[1742976523919,0.00724078,2070.7,2070.6,2.27448]
[1742976524320,0.00724078,2070.7,2070.6,5.48228]
[1742976525225,0.00724078,2070.7,2070.6,7.87228]
[1742976525814,0.00724078,2070.7,2070.6,5.48228]
[1742976532440,1.34484078,2070.7,2070.6,4.5165]
[1742976532633,0.96585,2070.5,2070.4,0.96583]
[1742976532829,0.96585,2070.5,2070.4,2.67583]
[1742976533034,0.96585,2070.5,2070.4,3.96373]
[1742976534433,0.96585,2070.5,2070.4,2.67583]
[1742976534638,0.96585,2070.5,2070.4,2.67588]
[1742976534841,4.17365,2070.5,2070.4,0.6466]
[1742976535136,0.96588,2070.4,2070.3,0.00724078]
[1742976535344,5.40348,2070.4,2070.3,0.60724078]
[1742976535837,0.96597,2070.2,2070.1,0.96601]
[1742976536036,0.966,2070.2,2069.6,5.62333]
[1742976536231,1.3134,2070.1,2069.9,42.1885]
[1742976536432,1.3134,2070.1,2070.0,2.35456]
[1742976536631,1.3134,2070.1,2070.0,4.59456]
[1742976536837,1.3134,2070.1,2070.0,2.35456]
[1742976537345,1.3134,2070.1,2070.0,3.59456]
[1742976540644,2.27942,2070.1,2070.0,2.20606]
[1742976540947,2.27942,2070.1,2070.0,1.24]
[1742976541936,5.48722,2070.1,2070.0,1.24]
[1742976542339,2.27942,2070.1,2070.0,2.20606]
[1742976542538,2.27942,2070.1,2070.0,1.24]
[1742976542734,2.27942,2070.1,2070.0,2.20606]
[1742976542947,5.48722,2070.1,2070.0,2.20606]
[1742976543246,5.48722,2070.1,2070.0,1.24]
[1742976544243,5.48722,2070.1,2069.9,0.96607]
[1742976544244,0.96642,2069.3,2068.9,2.41645]
[1742976544544,4.09546,2069.2,2069.0,2.3045]
[1742976544739,6.17246,2069.2,2069.1,41.76648]
[1742976545135,1.3707,2069.2,2069.1,44.04648]
[1742976545336,0.6661,2069.5,2069.4,0.96634]
[1742976545551,3.7961,2069.5,2069.4,0.96634]
[1742976545750,6.1331,2069.5,2069.4,0.96634]
[1742976545950,6.1331,2069.5,2069.4,2.36204]
[1742976546147,6.1331,2069.5,2069.4,1.3957]
[1742976546344,0.96639,2069.4,2069.3,1.3957]
[1742976546550,0.96639,2069.3,2069.2,0.9664]
[1742976546756,0.96639,2069.3,2069.2,2.3621]
[1742976547356,0.96639,2069.3,2069.2,1.3957]
[1742976547550,0.96644,2069.2,2069.1,41.76648]
[1742976547850,4.09644,2069.2,2069.1,42.1226]
[1742976549242,3.13,2069.2,2068.8,3.2078]
[1742976549551,1.3449,2069.1,2069.0,0.9665]
[1742976549739,1.3449,2069.1,2069.0,42.2565]
[1742976550848,2.31138,2069.1,2069.0,41.29]
[1742976551251,2.31138,2069.1,2069.0,43.62833]
[1742976551453,1.3449,2069.1,2069.0,2.82833]
[1742976551655,2.31138,2069.1,2069.0,2.82833]
[1742976551859,2.31138,2069.1,2069.0,1.8618]
[1742976552044,2.98128,2069.1,2069.0,0.49]
[1742976552851,3.65338,2069.1,2069.0,0.49]
[1742976554149,6.15338,2069.1,2069.0,0.49]
[1742976554753,6.23354239,2069.1,2069.0,0.49]
[1742976555157,6.15338,2069.1,2069.0,0.49]
[1742976559755,3.65338,2069.1,2069.0,0.49]
[1742976560861,6.78438,2069.1,2069.0,0.49]
[1742976562663,6.11228,2069.1,2069.0,0.49]
[1742976562854,2.98128,2069.1,2069.0,0.49]
[1742976563063,6.11228,2069.1,2069.0,0.49]
[1742976568769,5.44238,2069.1,2069.0,0.49]
[1742976569262,5.44238,2069.1,2069.0,1.88]
[1742976574475,5.44238,2069.1,2069.0,1.39]
[1742976574773,5.44238,2069.1,2069.0,3.14]
[1742976575571,2.31138,2069.1,2069.0,3.14]
[1742976575768,4.09748,2069.1,2069.0,3.14]
[1742976576583,4.09748,2069.1,2069.0,3.8333]
[1742976581780,4.09748,2069.1,2069.0,2.0833]
[1742976584885,5.43358,2069.1,2069.0,2.0833]
[1742976588489,5.43358,2069.1,2069.0,1.39]
[1742976591689,6.08868,2069.1,2069.0,1.39]
[1742976592101,6.16883967,2069.1,2069.0,1.39]
[1742976592285,6.55802188,2069.1,2069.0,1.39]